bitfinex/quotes_ETHUSD_20230404
["timestamp","ask_amount","ask_price","bid_price","bid_amount"]
[1680631213685,0.18936157,1869.8,1869.7,0.00377225]
[1680631214385,0.19836157,1869.8,1869.7,0.00377225]
[1680631214576,0.75105973,1869.8,1869.7,0.00377225]
[1680631215229,0.94358973,1869.8,1869.7,0.00377225]
[1680631215518,0.75105973,1869.8,1869.7,0.00377225]
[1680631216089,0.17649649,1869.8,1869.7,0.00377225]
[1680631217676,0.16749649,1869.8,1869.7,0.00377225]
[1680631218912,0.16749649,1869.8,1869.7,0.21770225]
[1680631219312,0.16749649,1869.8,1869.7,0.00377225]
[1680631224685,1.50502649,1869.8,1869.7,0.00377225]
[1680631224888,4.84730183,1869.8,1869.2,29.93]
[1680631225228,9.70660183,1869.8,1869.1,0.008]
[1680631225532,10.51386508,1869.7,1869.0,0.83559946]
[1680631225734,0.19256,1869.5,1869.0,0.83559946]
[1680631226037,1.24394651,1869.6,1869.0,1.04960946]
[1680631226325,0.19256,1869.5,1869.0,0.83559946]
[1680631226493,0.72393973,1869.5,1868.9,30.77359946]
[1680631226697,0.72393973,1869.5,1868.9,1.05161946]
[1680631226897,0.72393973,1869.5,1868.9,0.83559946]
[1680631227098,5.47453973,1869.5,1868.9,1.04961946]
[1680631227400,0.07239397,1869.4,1868.9,0.83559946]
[1680631227599,0.07239397,1869.4,1868.9,1.04961946]
[1680631227911,5.09242973,1869.5,1868.9,1.04961946]
[1680631228786,5.09242973,1869.5,1868.9,0.83559946]
[1680631229492,5.47754973,1869.5,1868.8,6.66653207]
[1680631229693,0.19258,1869.3,1868.8,9.43055425]
[1680631229894,0.19258,1869.3,1868.8,8.31642164]
[1680631230117,1.12548497,1869.4,1868.8,8.53045164]
[1680631230300,0.19258,1869.3,1868.8,9.43055425]
[1680631230497,1.12548497,1869.4,1868.8,8.53046164]
[1680631230726,0.1125485,1869.3,1868.8,8.31642164]
[1680631230930,0.3051285,1869.3,1868.8,8.31642164]
[1680631231248,0.19258,1869.3,1868.8,8.53045164]
[1680631231740,1.12548497,1869.4,1868.8,8.53045164]
[1680631232196,1.12548497,1869.4,1868.8,8.52784394]
[1680631232398,1.13448497,1869.4,1868.8,8.52184394]
[1680631232612,1.13448497,1869.4,1868.8,10.0485416]
[1680631232833,0.74933497,1869.4,1868.8,10.0485416]
[1680631233034,0.009,1869.4,1868.9,4.74662164]
[1680631233231,0.009,1869.4,1869.0,0.21401]
[1680631233862,0.009,1869.4,1868.9,5.38868164]
[1680631234016,0.009,1869.4,1869.0,0.53886816]
[1680631234354,0.009,1869.4,1869.0,0.75287816]
[1680631234917,0.009,1869.4,1869.0,0.53886816]
[1680631235352,0.20157,1869.4,1869.0,0.53886816]
[1680631235557,0.009,1869.4,1869.0,0.53886816]
[1680631235723,0.20157,1869.4,1869.0,0.53886816]
[1680631235926,0.009,1869.4,1869.0,0.53886816]
[1680631236345,0.20157,1869.4,1869.0,0.53886816]
[1680631236544,0.009,1869.4,1869.0,0.53886816]
[1680631236746,0.20157,1869.4,1869.0,0.53886816]
[1680631237263,0.20157,1869.4,1868.9,1.145]
[1680631237784,0.20157,1869.4,1868.8,6.44891996]
[1680631237950,0.20157,1869.4,1868.8,9.21294214]
[1680631238698,0.20157,1869.4,1868.8,10.0485416]
[1680631239181,0.20157,1869.4,1868.8,9.21294214]
[1680631239385,0.7356,1869.4,1868.8,9.21294214]
[1680631241793,0.7356,1869.4,1868.8,4.7061923]
[1680631244287,0.7356,1869.4,1868.8,4.9202323]
[1680631244584,0.54303,1869.4,1868.8,4.9202323]
[1680631245206,0.73561,1869.4,1868.9,2.76602218]
[1680631245492,0.073561,1869.3,1868.9,0.21402]
[1680631248281,0.266141,1869.3,1868.8,4.7061923]
[1680631248450,0.073561,1869.3,1868.8,4.9202323]
[1680631248998,0.266141,1869.3,1868.8,4.7061923]
[1680631249155,0.073561,1869.3,1868.8,4.9202223]
[1680631249981,0.266141,1869.3,1868.8,4.9202223]
[1680631250281,0.073561,1869.3,1868.8,4.9202223]
[1680631251495,0.03086508,1869.4,1868.8,8.73291666]
[1680631251798,0.03086508,1869.4,1868.8,9.56851612]
[1680631253783,0.22343508,1869.4,1868.8,6.37441394]
[1680631253980,0.03086508,1869.4,1868.8,5.75582176]
[1680631255045,0.22343508,1869.4,1868.8,5.75582176]
[1680631255245,0.22343508,1869.4,1868.8,5.54179176]
[1680631255440,0.22043508,1869.4,1868.8,5.54179176]
[1680631255658,0.87415159,1869.4,1868.8,5.75582176]
[1680631256085,0.86234682,1869.4,1868.8,5.76182176]
[1680631256597,0.86234682,1869.4,1868.8,6.87595437]
[1680631256803,0.86234682,1869.4,1868.8,7.70301638]
[1680631258700,0.86234682,1869.4,1868.9,0.83559946]
[1680631258999,0.86234682,1869.4,1868.9,0.84159946]
[1680631259404,0.86234682,1869.4,1868.9,1.05561946]
[1680631259572,0.86234682,1869.4,1868.9,0.84159946]
[1680631259778,0.86234682,1869.4,1868.9,1.05561946]
[1680631260406,0.01906031,1869.4,1868.9,1.8261201]
[1680631260588,0.21163031,1869.4,1868.9,1.6121001]
[1680631261179,0.01906031,1869.4,1868.9,1.8261201]
[1680631261893,0.21163031,1869.4,1868.9,1.8261201]
[1680631262062,0.01906031,1869.4,1869.0,0.18261201]
[1680631262269,4.7506,1869.5,1869.0,0.39662201]
[1680631262491,4.94317,1869.5,1869.0,0.18261201]
[1680631262697,5.32829,1869.5,1869.0,0.18261201]
[1680631262869,5.33129,1869.5,1869.0,0.18261201]
[1680631263769,5.928619,1869.5,1869.0,0.18261201]
[1680631263969,5.928619,1869.5,1868.9,1.6121001]
[1680631264928,5.928619,1869.5,1868.9,1.8261201]
[1680631265136,4.94617,1869.5,1868.9,1.8261201]
[1680631265433,4.94317,1869.5,1868.9,1.6121001]
[1680631265587,4.94317,1869.5,1868.9,1.6061001]
[1680631265785,4.94317,1869.5,1868.9,1.6121001]
[1680631266117,5.540198,1869.5,1868.9,1.6121001]
[1680631266318,5.543198,1869.5,1868.9,1.6121001]
[1680631266630,5.543198,1869.5,1869.0,0.83559946]
[1680631268697,5.543198,1869.5,1869.0,1.94973207]
[1680631268895,5.543198,1869.5,1869.1,0.83559946]
[1680631269195,0.5543198,1869.4,1869.1,0.83559946]
[1680631269396,0.5543198,1869.4,1869.0,0.84159946]
[1680631269596,4.7536,1869.5,1869.1,0.83559946]
[1680631269795,4.7506,1869.5,1869.1,0.83559946]
[1680631270121,4.7506,1869.5,1869.0,1.95573207]
[1680631270122,5.32828,1869.5,1869.0,1.95573207]
[1680631270293,5.33128,1869.5,1869.0,0.83559946]
[1680631270497,0.725708,1869.4,1869.1,0.83559946]
[1680631273723,0.19258,1869.4,1869.1,0.83559946]
[1680631274051,10.4864,1869.6,1869.3,0.83559946]
[1680631274236,10.4894,1869.6,1869.3,0.83559946]
[1680631274954,10.68195,1869.6,1869.2,0.84535818]
[1680631275255,1.068195,1869.5,1869.2,0.83935818]
[1680631275417,1.068195,1869.5,1869.2,0.84135818]
[1680631275616,2.76602218,1869.4,1869.2,0.83559946]
[1680631275961,1.34816,1869.2,1868.9,0.006]
[1680631276168,3.60363218,1869.1,1868.8,0.83559946]
[1680631276459,0.972426,1869.1,1868.7,1.95173207]
[1680631276625,0.972426,1869.1,1868.7,0.83559946]
[1680631276816,1.357636,1869.1,1868.7,0.83559946]
[1680631277016,0.1357636,1869.0,1868.7,0.83559946]
[1680631277337,0.19262,1868.9,1868.6,0.93759946]
[1680631277509,0.19262,1868.9,1868.6,0.93559946]
[1680631279473,0.64923136,1868.9,1868.6,0.93559946]
[1680631279677,0.64625803,1868.9,1868.6,0.93559946]
[1680631280928,0.64625803,1868.9,1868.6,0.1]
[1680631282374,0.26100803,1868.9,1868.6,0.1]
[1680631282579,0.19262,1868.9,1868.6,0.1]
[1680631283065,10.999,1869.2,1868.6,2.86602218]
[1680631283328,0.003,1869.2,1868.8,1.04962946]
[1680631283486,10.4608,1869.4,1868.8,1.04962946]
[1680631283487,10.4548,1869.4,1868.8,1.04962946]
[1680631283688,10.64737,1869.4,1868.9,0.10496295]
[1680631283927,10.4548,1869.4,1868.9,0.10872227]
[1680631284092,0.003,1869.4,1868.9,0.32274227]
[1680631284298,11.5978,1869.6,1868.9,1.15834173]
[1680631284532,11.79336,1869.6,1869.0,0.32984417]
[1680631284690,11.79336,1869.6,1869.0,0.11583417]
[1680631284893,12.17846,1869.6,1869.0,0.11583417]
[1680631285226,13.945824,1869.6,1869.0,0.11583417]
[1680631285434,13.945824,1869.6,1869.0,0.32984417]
[1680631285824,13.945824,1869.6,1869.0,0.11583417]
[1680631286487,13.560724,1869.6,1869.0,0.32984417]
[1680631286691,11.79336,1869.6,1869.0,0.32984417]
[1680631286896,11.79336,1869.6,1869.0,0.11583417]
[1680631287496,12.17846,1869.6,1869.0,0.11583417]
[1680631287745,12.17846,1869.6,1869.0,0.32984417]
[1680631287949,12.17846,1869.6,1869.0,0.11583417]
[1680631288964,0.0190603,1869.5,1868.9,0.94056241]
[1680631289094,0.19258,1869.4,1868.8,2.16776207]
[1680631289295,16.13609221,1869.6,1869.0,0.83559946]
[1680631289296,0.003,1869.6,1869.0,0.83559946]
[1680631289598,15.61745,1869.7,1869.1,0.21399]
[1680631289818,15.62945,1869.7,1869.1,0.74976542]
[1680631290966,15.62045,1869.7,1869.1,0.74976542]
[1680631291753,15.6395103,1869.7,1869.1,0.74976542]
[1680631291928,15.6395103,1869.7,1869.2,0.07497654]
[1680631293372,16.0245903,1869.7,1869.1,0.53577542]
[1680631293671,16.0245903,1869.7,1869.0,0.84159946]
[1680631293828,18.79061248,1869.7,1869.0,1.04960946]
[1680631294034,18.79061248,1869.7,1869.0,1.05160946]
[1680631294222,1.87906125,1869.6,1869.0,1.05160946]
[1680631294421,3.59671125,1869.6,1869.0,0.83959946]
[1680631294856,4.089145,1869.6,1869.0,0.83959946]
[1680631295056,4.089145,1869.6,1869.0,1.05560946]
[1680631295237,0.6014845,1869.5,1869.0,0.84159946]
[1680631295452,0.6014745,1869.5,1869.0,1.05560946]
[1680631295616,0.4089145,1869.5,1869.0,1.05560946]
[1680631297220,0.6014745,1869.5,1869.0,1.05560946]
[1680631297421,0.4089145,1869.5,1869.0,1.05560946]
[1680631298341,3.03812155,1869.6,1869.0,1.48363946]
[1680631298867,1.1590603,1869.6,1869.0,4.24966164]
[1680631299034,0.0190603,1869.6,1869.0,5.24966164]
[1680631301030,0.2116103,1869.6,1869.0,5.24966164]
[1680631301466,0.2116103,1869.6,1869.0,1.84159946]
[1680631301664,2.16066133,1869.6,1869.0,1.83959946]
[1680631301837,2.16066133,1869.6,1869.0,1.84159946]
[1680631302240,2.16066133,1869.6,1869.0,2.05560946]
[1680631302471,2.16066133,1869.6,1869.0,1.84159946]
[1680631302935,0.48896409,1869.5,1869.0,2.05560946]
[1680631303475,0.68152409,1869.5,1869.0,1.84159946]
[1680631303845,0.48896409,1869.5,1869.0,2.05560946]
[1680631304045,0.48553496,1869.5,1869.0,2.05560946]
[1680631304466,0.67809496,1869.5,1869.0,2.05560946]
[1680631304665,0.67809496,1869.5,1869.0,1.22001]
[1680631304972,0.48553496,1869.5,1869.0,1.22001]
[1680631305346,0.69238959,1869.5,1869.0,1.22001]
[1680631305571,0.69238959,1869.5,1869.0,2.05160946]
[1680631305770,0.69238959,1869.5,1869.0,2.05560946]
[1680631305965,0.48553496,1869.5,1869.0,2.05560946]
[1680631306166,0.48553496,1869.5,1869.0,2.05360946]
[1680631306373,0.48553496,1869.5,1869.0,2.05160946]
[1680631306568,0.48553496,1869.5,1869.0,2.47963946]
[1680631306772,0.48553496,1869.5,1869.0,2.48163946]
[1680631307580,0.48553496,1869.5,1869.0,2.47963946]
[1680631307763,0.48553496,1869.5,1869.0,2.48163946]
[1680631308255,0.48553496,1869.5,1869.1,0.24816395]
[1680631308459,0.48553496,1869.5,1869.1,0.46216395]
[1680631310915,0.48553496,1869.5,1869.1,0.24816395]
[1680631311613,0.48553496,1869.5,1869.1,0.46216395]
[1680631311813,0.48553496,1869.5,1869.1,0.24816395]
[1680631312705,0.48553496,1869.5,1869.0,2.04959946]
[1680631313320,0.67809496,1869.5,1869.0,2.04959946]
[1680631313675,0.48553496,1869.5,1869.0,2.04959946]
[1680631320424,0.48553496,1869.5,1869.0,1.214]
[1680631320630,0.48553496,1869.5,1869.0,1.0]
[1680631320925,0.48553496,1869.5,1869.0,1.214]
[1680631321223,0.67809496,1869.5,1869.0,1.0]
[1680631324652,0.67809496,1869.5,1869.0,1.83559946]
[1680631324809,0.67809496,1869.5,1869.0,1.0]
[1680631325141,0.67809496,1869.5,1869.0,1.83559946]
[1680631325527,0.0678095,1869.4,1869.0,1.83559946]
[1680631325921,0.19256,1869.5,1869.0,1.83559946]
[1680631327326,0.19256,1869.5,1869.0,2.94973207]
[1680631328760,0.19256,1869.5,1869.1,1.94973207]
[1680631329163,0.19256,1869.5,1869.1,0.83559946]
[1680631329969,0.19256,1869.5,1869.1,1.94973207]
[1680631330264,0.36763203,1869.5,1869.1,0.83559946]
[1680631330964,0.36763203,1869.5,1869.1,1.94973207]
[1680631332783,0.48475277,1869.4,1869.1,1.94973207]
[1680631332949,0.48475277,1869.4,1869.2,0.83559946]
[1680631333134,0.56999125,1869.4,1869.2,0.83559946]
[1680631333461,0.56659541,1869.4,1869.2,0.83559946]
[1680631335738,0.48135693,1869.4,1869.2,0.83559946]
[1680631336799,1.1640603,1869.6,1869.2,0.83559946]
[1680631337975,0.48498771,1869.5,1869.2,0.83559946]
[1680631340717,0.67754771,1869.5,1869.2,0.83559946]
[1680631342265,1.31854771,1869.5,1869.2,0.83559946]
[1680631343406,0.13185477,1869.4,1869.2,0.83559946]
[1680631344006,0.83356,1869.5,1869.2,0.83559946]
[1680631344204,0.19256,1869.5,1869.2,0.83559946]
[1680631347827,0.48452206,1869.4,1869.2,0.83559946]
[1680631351720,0.48452206,1869.4,1869.2,2.16372207]
[1680631352045,0.48452206,1869.4,1869.3,0.83559946]
[1680631354735,0.61843848,1869.4,1869.3,0.83559946]
[1680631355041,0.61843848,1869.4,1869.2,1.19123824]
[1680631357943,0.61591075,1869.4,1869.2,1.19123824]
[1680631359302,0.61591075,1869.4,1869.2,0.83559946]
[1680631374259,0.82754105,1869.4,1869.1,0.83559946]
[1680631377552,3.41202218,1869.3,1869.1,0.83559946]
[1680631379853,3.41202218,1869.3,1869.0,1.84159946]
[1680631380218,0.646,1869.3,1869.1,0.83559946]
[1680631380446,0.64373838,1869.3,1869.1,0.83559946]
[1680631380647,0.64373838,1869.3,1869.1,1.04959946]
[1680631381053,0.64373838,1869.3,1869.1,0.83559946]
[1680631381557,0.64373838,1869.3,1869.1,1.04959946]
[1680631381859,0.0190603,1869.4,1869.1,1.04959946]
[1680631382461,0.0190603,1869.4,1869.1,1.36597267]
[1680631382822,0.0190603,1869.4,1869.1,1.15197267]
[1680631383459,0.641,1869.5,1869.1,1.15197267]
[1680631383759,0.641,1869.5,1869.2,0.83559946]
[1680631384397,1.76001481,1869.8,1869.2,1.04958946]
[1680631384398,1.77201481,1869.8,1869.2,1.04958946]
[1680631384537,0.19254,1869.7,1869.2,1.08360899]
[1680631385246,0.73795481,1869.8,1869.2,1.29759899]
[1680631385424,0.36002649,1869.8,1869.3,0.83559946]
[1680631385625,0.16749649,1869.8,1869.3,1.04957946]
[1680631385832,0.16749649,1869.8,1869.4,0.10495795]
[1680631386241,0.16749649,1869.8,1869.4,0.31892795]
[1680631386728,0.16749649,1869.8,1869.4,0.10495795]
[1680631387659,0.1570894,1869.8,1869.4,0.10495795]
[1680631388350,0.3496194,1869.8,1869.4,0.10495795]
[1680631390863,0.1570894,1869.8,1869.4,0.10495795]
[1680631391188,0.3496194,1869.8,1869.4,0.10495795]
[1680631391372,0.1570894,1869.8,1869.4,0.10495795]
[1680631392584,0.3496194,1869.8,1869.4,0.10495795]
[1680631392769,0.60735961,1869.7,1869.4,0.10495795]
[1680631394264,0.79989961,1869.7,1869.4,0.10495795]
[1680631394651,0.79989961,1869.7,1869.3,0.00975852]
[1680631404500,0.60735961,1869.7,1869.3,0.00975852]
[1680631405000,0.79989961,1869.7,1869.3,0.00975852]
[1680631405167,0.60735961,1869.7,1869.3,0.84535798]
[1680631405367,0.60735961,1869.7,1869.3,1.05933798]
[1680631405708,0.60735961,1869.7,1869.3,0.84535798]
[1680631406493,0.55735961,1869.7,1869.3,0.00775852]
[1680631406690,0.55735961,1869.7,1869.3,0.00375852]
[1680631406691,2.15662851,1869.7,1869.3,0.00375852]
[1680631406871,2.15662851,1869.7,1869.3,0.00575852]
[1680631407073,2.15662851,1869.7,1869.3,0.00775852]
[1680631407275,0.55735961,1869.7,1869.3,0.22173852]
[1680631407476,0.55735961,1869.7,1869.3,0.21973852]
[1680631407925,0.55735961,1869.7,1869.3,1.05533798]
[1680631408065,0.55735961,1869.7,1869.4,0.1055338]
[1680631408494,0.55735961,1869.7,1869.3,0.84535798]
[1680631408658,0.55735961,1869.7,1869.3,0.00775852]
[1680631409012,0.55735961,1869.7,1869.3,0.21973852]
[1680631409312,0.55735961,1869.7,1869.3,0.00575852]
[1680631410282,0.55735961,1869.7,1869.3,0.00375852]
[1680631410486,0.55735961,1869.7,1869.3,0.67607558]
[1680631410690,0.55735961,1869.7,1869.3,0.68007558]
[1680631413793,0.55735961,1869.7,1869.3,0.67607558]
[1680631414115,0.55735961,1869.7,1869.3,0.68007558]
[1680631415331,0.74989961,1869.7,1869.3,0.68007558]
[1680631418004,0.74989961,1869.7,1869.3,0.00775852]
[1680631418234,0.74989961,1869.7,1869.3,0.00375852]
[1680631418412,1.13497961,1869.7,1869.2,5.39129946]
[1680631418614,0.19256,1869.5,1869.2,0.006]
[1680631418951,0.646,1869.6,1869.2,0.83559946]
[1680631419097,0.19255,1869.7,1869.2,0.83559946]
[1680631422010,0.2116103,1869.7,1869.2,0.83559946]
[1680631422207,1.85515827,1869.7,1869.2,0.83559946]
[1680631422741,0.59965317,1869.6,1869.2,0.83559946]
[1680631423109,0.79220317,1869.6,1869.2,0.83559946]
[1680631423314,1.43420317,1869.6,1869.2,0.83559946]
[1680631426063,1.24165317,1869.6,1869.2,0.83559946]
[1680631427910,0.59965317,1869.6,1869.2,1.26656267]
[1680631428561,0.59965317,1869.6,1869.2,1.05257267]
[1680631429308,0.79220317,1869.6,1869.2,1.05257267]
[1680631429785,0.59965317,1869.6,1869.2,1.05257267]
[1680631429978,0.59965317,1869.6,1869.3,0.10525727]
[1680631430298,0.79220317,1869.6,1869.3,0.10525727]
[1680631430873,0.69220317,1869.6,1869.3,0.10525727]
[1680631431072,1.07730317,1869.6,1869.2,1.05257267]
[1680631431663,1.07730317,1869.6,1869.2,0.83559946]
[1680631435299,0.69220317,1869.6,1869.2,0.83559946]
[1680631445801,0.69220317,1869.6,1869.2,1.94973207]
[1680631446153,0.69220317,1869.6,1869.2,0.83559946]
[1680631446903,1.07730317,1869.6,1869.2,0.83559946]
[1680631447253,0.10773032,1869.5,1869.2,0.83559946]
[1680631447408,0.69220317,1869.6,1869.2,0.83559946]
[1680631447810,0.19255,1869.6,1869.2,0.83559946]
[1680631448458,0.5967003,1869.7,1869.2,0.83559946]
[1680631448656,2.3541531,1869.7,1869.2,0.83559946]
[1680631452868,0.60421448,1869.6,1869.2,0.83559946]
[1680631453167,0.79676448,1869.6,1869.2,0.83559946]
[1680631453346,0.60421448,1869.6,1869.2,0.83559946]
[1680631453664,0.60421448,1869.6,1869.3,0.08355995]
[1680631453867,0.19255,1869.6,1869.2,0.83559946]
[1680631454778,0.0190603,1869.7,1869.2,0.83559946]
[1680631455062,0.2116003,1869.7,1869.2,0.83559946]
[1680631455567,0.5966803,1869.7,1869.2,0.83559946]
[1680631457769,0.5966803,1869.7,1869.2,2.28494775]
[1680631458369,0.5966803,1869.7,1869.2,1.17081514]
[1680631459573,0.5966803,1869.7,1869.3,0.83559946]
[1680631459729,0.2116003,1869.7,1869.3,0.83559946]
[1680631460139,0.5966803,1869.7,1869.3,0.83559946]
[1680631460641,0.5966803,1869.7,1869.2,7.14664775]
[1680631460859,0.5966803,1869.7,1869.2,7.14464775]
[1680631461077,0.5966803,1869.7,1869.2,6.03051514]
[1680631461289,0.5966803,1869.7,1869.3,0.83559946]
[1680631461491,0.2116003,1869.7,1869.3,0.83559946]
[1680631464371,0.2116003,1869.7,1869.3,1.55026423]
[1680631467847,0.60470759,1869.6,1869.3,1.55026423]
[1680631469148,0.60251212,1869.6,1869.3,1.55026423]
[1680631469786,0.0190603,1869.7,1869.3,1.55026423]
[1680631469974,0.2116103,1869.7,1869.3,0.83559946]
[1680631470175,0.5966903,1869.7,1869.3,0.83559946]
[1680631470990,0.60462314,1869.6,1869.3,0.83559946]
[1680631471149,0.79717314,1869.6,1869.3,0.83559946]
[1680631474943,0.79717314,1869.6,1869.2,6.81143207]
[1680631475215,0.79717314,1869.6,1869.2,5.69529946]
[1680631475504,0.79717314,1869.6,1869.2,6.80943207]
[1680631475704,0.79717314,1869.6,1869.2,8.55392775]
[1680631479209,0.79717314,1869.6,1869.2,6.80943207]
[1680631479414,1.18227314,1869.6,1869.2,6.80943207]
[1680631479712,1.18227314,1869.6,1869.3,0.83559946]
[1680631479883,1.18227314,1869.6,1869.2,0.83559946]
[1680631480290,1.35855232,1869.6,1869.2,0.83559946]
[1680631481476,1.35855232,1869.6,1869.2,1.94973207]
[1680631481678,1.35855232,1869.6,1869.2,0.83559946]
[1680631483806,1.35855232,1869.6,1869.2,1.94973207]
[1680631485585,2.00455232,1869.6,1869.2,0.83559946]
[1680631485915,0.32842523,1869.5,1869.2,0.83559946]
[1680631486120,0.19257,1869.5,1869.2,0.83559946]
[1680631489028,1.41899948,1869.6,1869.2,0.83559946]
[1680631489916,1.41899948,1869.6,1869.3,0.83559946]
[1680631490096,1.41899948,1869.6,1869.2,1.11413261]
[1680631490097,1.03389948,1869.6,1869.2,1.94973207]
[1680631490296,1.03389948,1869.6,1869.3,0.83559946]
[1680631490496,0.10338995,1869.5,1869.2,1.94973207]
[1680631490896,0.10338995,1869.5,1869.2,0.83559946]
[1680631491431,0.10338995,1869.5,1869.2,1.94973207]
[1680631491793,0.10338995,1869.5,1869.2,0.83559946]
[1680631492130,0.10338995,1869.5,1869.3,0.83559946]
[1680631492519,0.0190603,1869.4,1869.2,0.83559946]
[1680631492702,0.5967803,1869.4,1869.1,0.84159946]
[1680631492903,0.66679732,1869.4,1869.1,0.84159946]
[1680631493104,0.66679732,1869.4,1869.1,0.83759946]
[1680631493321,3.4328195,1869.4,1869.1,0.83559946]
[1680631493524,3.4328195,1869.4,1869.1,0.84159946]
[1680631493729,3.4328195,1869.4,1869.1,0.83559946]
[1680631493941,0.34328195,1869.3,1869.1,0.83559946]
[1680631494104,0.53587195,1869.3,1869.1,0.83559946]
[1680631494629,0.53587195,1869.3,1869.0,2.95573207]
[1680631495045,0.53587195,1869.3,1869.1,0.83559946]
[1680631495223,0.53587195,1869.3,1869.0,1.84159946]
[1680631495643,0.53587195,1869.3,1869.1,0.83559946]
[1680631495644,0.34328195,1869.3,1869.1,0.83559946]
[1680631497745,0.54059174,1869.2,1869.1,0.83559946]
[1680631498859,0.62897911,1869.2,1869.0,2.95573207]
[1680631499063,0.54059174,1869.2,1869.0,1.84159946]
[1680631499428,0.54059174,1869.2,1869.0,1.83559946]
[1680631500552,0.54059174,1869.2,1869.0,1.83759946]
[1680631501728,0.54059174,1869.2,1869.0,1.83559946]
[1680631503133,0.54059174,1869.2,1869.0,1.84159946]
[1680631503339,0.54059174,1869.2,1869.0,1.83559946]
[1680631504763,0.54059174,1869.2,1869.1,0.83559946]
[1680631504913,0.54059174,1869.2,1869.0,2.11413261]
[1680631504914,0.54059174,1869.2,1869.0,1.84159946]
[1680631505324,0.54059174,1869.2,1869.0,1.83559946]
[1680631505755,0.54059174,1869.2,1869.0,1.83759946]
[1680631506335,0.54059174,1869.2,1869.0,1.83559946]
[1680631507963,0.54059174,1869.2,1869.0,1.83759946]
[1680631508164,0.54059174,1869.2,1869.0,1.83559946]
[1680631511244,0.62897911,1869.2,1869.0,1.83559946]
[1680631511444,0.62897911,1869.2,1869.0,1.0]
[1680631511445,1.20314708,1869.2,1869.0,1.0]
[1680631515704,3.96916926,1869.2,1869.0,1.0]
[1680631517719,3.58397926,1869.2,1869.0,1.0]
[1680631518025,0.53696971,1869.2,1869.0,1.0]
[1680631518522,0.72955971,1869.2,1869.0,1.0]
[1680631518916,0.53696971,1869.2,1869.0,1.0]
[1680631519804,0.19257,1869.4,1869.0,1.0]
[1680631520943,0.48949962,1869.3,1869.0,1.0]
[1680631521982,0.68207962,1869.3,1869.0,1.0]
[1680631522540,3.93999476,1869.3,1869.0,1.0]
[1680631522831,3.55482476,1869.3,1869.0,1.0]
[1680631526631,3.36224476,1869.3,1869.0,1.0]
[1680631527096,0.59622258,1869.3,1869.0,1.0]
[1680631527298,0.48949962,1869.3,1869.0,1.21401]
[1680631527839,0.48949962,1869.3,1869.0,2.04960946]
[1680631529124,0.48949962,1869.3,1869.0,1.83559946]
[1680631530167,0.48949962,1869.3,1869.1,0.18355995]
[1680631530374,0.48949962,1869.3,1869.1,1.87514941]
[1680631530582,0.48949962,1869.3,1869.2,4.05402218]
[1680631530734,0.006,1869.7,1869.2,4.05402218]
[1680631530735,0.1570894,1869.8,1869.2,6.89611479]
[1680631530939,0.1570894,1869.8,1869.6,0.646]
[1680631531180,0.1570894,1869.8,1869.7,0.21393]
[1680631531425,0.1570894,1869.8,1869.6,0.85993]
[1680631531894,0.57873736,1869.8,1869.6,1.28782]
[1680631532258,0.57625068,1869.8,1869.6,1.28782]
[1680631532454,0.57625068,1869.8,1869.7,0.128782]
[1680631532665,0.57625068,1869.8,1869.7,0.342712]
[1680631532986,0.95620465,1869.8,1869.7,0.342712]
[1680631533188,0.95620465,1869.8,1869.7,0.34646971]
[1680631533356,0.95620465,1869.8,1869.7,0.77433971]
[1680631533784,0.15460272,1869.8,1869.7,0.77433971]
[1680631535295,0.15460272,1869.8,1869.7,1.42033971]
[1680631535791,0.15460272,1869.8,1869.7,4.18636189]
[1680631535995,0.15460272,1869.8,1869.7,4.41636189]
[1680631536345,0.00060272,1869.8,1869.7,10.04536189]
[1680631536580,0.00060272,1869.8,1869.7,10.88445712]
[1680631536898,0.00060272,1869.8,1869.7,10.04536189]
[1680631537259,0.00060272,1869.8,1869.7,10.54336189]
[1680631539101,0.00060272,1869.8,1869.7,11.38245712]
[1680631539307,0.00060272,1869.8,1869.7,10.54336189]
[1680631540773,0.00060272,1869.8,1869.7,19.25222082]
[1680631540967,0.00060272,1869.8,1869.7,20.09131605]
[1680631541206,0.00060272,1869.8,1869.7,19.25222082]
[1680631543173,0.00060272,1869.8,1869.7,20.39422082]
[1680631548020,0.00060272,1869.8,1869.7,20.39622082]
[1680631549024,0.00060272,1869.8,1869.7,20.39422082]
[1680631549733,0.00060272,1869.8,1869.7,20.39622082]
[1680631550585,0.00060272,1869.8,1869.7,20.39422082]
[1680631551074,0.00060272,1869.8,1869.7,20.39622082]
[1680631551275,0.00060272,1869.8,1869.7,55.39622082]
[1680631551469,0.00060272,1869.8,1869.7,54.25422082]
[1680631551969,0.00060272,1869.8,1869.7,54.25222082]
[1680631552173,0.00060272,1869.8,1869.7,55.39322082]
[1680631553007,0.00060272,1869.8,1869.7,58.59822082]
[1680631553675,0.5454246,1871.4,1869.9,2.2]
[1680631553872,0.19228,1872.2,1871.3,5.629]
[1680631554141,0.003,1871.6,1871.4,3.54266218]
[1680631554274,0.003,1871.6,1871.4,2.76602218]
[1680631554475,0.003,1871.6,1871.3,0.64125]
[1680631554704,0.003,1871.6,1871.3,2.97976218]
[1680631555017,0.0190603,1871.8,1871.2,0.21975]
[1680631555214,1.144,1871.7,1871.3,0.21374]
[1680631555517,1.144,1871.5,1871.1,0.21976]
[1680631555830,1.144,1871.5,1871.1,2.98578218]
[1680631556511,1.144,1871.5,1871.1,3.41333218]
[1680631557425,1.144,1871.5,1871.1,3.40789204]
[1680631557426,1.147,1871.5,1871.1,3.40789204]
[1680631557578,1.26030603,1871.5,1871.1,3.40733218]
[1680631557776,0.47954923,1871.4,1871.1,3.40733218]
[1680631558520,0.47954923,1871.4,1871.3,0.64126]
[1680631558880,0.0280603,1871.6,1871.3,0.64126]
[1680631559074,0.009,1871.6,1871.3,3.40728218]
[1680631559308,0.009,1871.6,1871.5,1.49611]
[1680631559686,0.48235622,1871.6,1871.5,1.49611]
[1680631560087,0.48235622,1871.6,1871.5,0.64119]
[1680631561091,0.48235622,1871.6,1871.3,0.0057545]
[1680631561388,1.62635622,1871.6,1871.2,0.44376]
[1680631561585,1.78899184,1871.6,1871.2,3.20978218]
[1680631561814,1.78899184,1871.6,1871.2,0.21376]
[1680631562013,1.78899184,1871.6,1871.2,0.64129]
[1680631562406,1.79799184,1871.6,1871.2,0.64129]
[1680631562726,0.17979918,1871.5,1871.2,0.64129]
[1680631562939,1.62635622,1871.6,1871.2,2.97978218]
[1680631563141,1.63535622,1871.6,1871.1,0.002]
[1680631563363,1.62635622,1871.6,1871.3,0.21375]
[1680631563502,1.62635622,1871.6,1871.2,0.21375]
[1680631563707,0.16263562,1871.5,1871.2,0.21375]
[1680631564708,0.16263562,1871.5,1871.2,0.64128]